[Event "EYCC Open-U10 2019"]
[Site "Bratislava"]
[Date "2019.08.08"]
[Round "7.23"]
[White "Rudnev, Andrei"]
[Black "Csernyik, Mark"]
[Result "1-0"]
[ECO "B01"]
[WhiteElo "1607"]
[BlackElo "1648"]
[Annotator "NA"]
[PlyCount "81"]
[EventDate "2019.08.02"]
[EventType "swiss"]
[EventCountry "SVK"]
[SourceTitle "playchess.com"]
[Source "ChessBase"]
[SourceQuality "1"]
[TimeControl "40/5400+30:1800+30"]

1. e4 {[%emt 0:00:00]} d5 {[%emt 0:00:00]} 2. exd5 {[%emt 0:00:00]} Qxd5 {[%emt 0:00:00]} 3. Nc3 {[%emt 0:00:00]} Qd6 {[%emt 0:00:00]} 4. d4 {[%emt 0:00:05]} Nf6 {[%emt 0:00:04]} 5. Nf3 {[%emt 0:00:16]} a6 {[%emt 0:00:18]} 6. g3 {[%emt 0:01:15]} Bg4 {[%emt 0:00:14]} 7. h3 {[%emt 0:00:46]} Bh5 {[%emt 0:06:58]} 8. Bg2 {[%emt 0:01:41]} Nc6 {[%emt 0:00:20]} 9. O-O {[%emt 0:00:37]} O-O-O {[%emt 0:01:24]} 10. Bf4 {[%emt 0:01:27]} Qd7 {[%emt 0:05:07]} 11. g4 {[%emt 0:03:13]} Bg6 {[%emt 0:00:16]} 12. Ne2 {[%emt 0:16:29]} h5 {[%emt 0:09:09]} 13. g5 {[%emt 0:01:52]} Nd5 {[%emt 0:00:15]} 14. Bg3 {[%emt 0:03:36]} Bf5 {[%emt 0:01:36]} 15. Kh2 {[%emt 0:05:02]} e6 {[%emt 0:02:42]} 16. a3 {[%emt 0:11:16]} Bd6 {[%emt 0:00:27]} 17. Qd2 {[%emt 0:01:03]} h4 {[%emt 0:04:36]} 18. Bxd6 {[%emt 0:01:44]} Qxd6+ {[%emt 0:04:27]} 19. Kh1 {[%emt 0:00:59]} e5 {[%emt 0:02:09]} 20. c4 {[%emt 0:04:37]} Nde7 {[%emt 0:00:32]} 21. d5 {[%emt 0:01:32]} e4 {[%emt 0:01:18]} 22. Nfd4 {[%emt 0:04:19]} Ne5 {[%emt 0:00:25]} 23. Nxf5 {[%emt 0:02:27]} Nxf5 {[%emt 0:01:23]} 24. Qf4 {[%emt 0:01:08]} g6 {[%emt 0:01:58]} 25. Bxe4 {[%emt 0:01:35]} Ng7 {[%emt 0:01:57]} 26. c5 {[%emt 0:05:57]} Qe7 {[%emt 0:01:14]} 27. Nc3 {[%emt 0:02:20]} Nh5 {[%emt 0:03:23]} 28. Qe3 {[%emt 0:00:44]} Kb8 {[%emt 0:00:47]} 29. Bg2 {[%emt 0:06:14]} Rhe8 30. Rfe1 {[%emt 0:01:35]} Qf8 {[%emt 0:03:10]} 31. Qd4 {[%emt 0:01:45]} Nd7 {[%emt 0:01:05]} 32. c6 {[%emt 0:02:14]} bxc6 {[%emt 0:00:40]} 33. dxc6 {[%emt 0:01:31]} Nb6 {[%emt 0:00:14]} 34. Qxh4 {[%emt 0:01:52]} Rd2 {[%emt 0:00:23]} 35. Na4 {[%emt 0:01:22]} Rxe1+ {[%emt 0:01:45]} 36. Rxe1 {[%emt 0:00:07]} Qd6 {[%emt 0:01:48]} 37. Nxb6 {[%emt 0:02:38]} cxb6 {[%emt 0:00:05]} 38. Qg4 {[%emt 0:00:40]} Ng7 {[%emt 0:02:02]} 39. c7+ {[%emt 0:03:47]} Qxc7 {[%emt 0:00:31]} 40. Qf3 {[%emt 0:00:00]} Qa7 {[%emt 0:00:00]} 41. Qf4+ {[%emt 0:00:17]} 1-0

[Event "EYCC Open-U10 2019"]
[Site "Bratislava"]
[Date "2019.08.08"]
[Round "7.24"]
[White "Haubold, Sebastian Marcel"]
[Black "Hvozdz, Aliaksandr"]
[Result "1/2-1/2"]
[ECO "B01"]
[WhiteElo "1455"]
[BlackElo "1699"]
[Annotator "NA"]
[PlyCount "89"]
[EventDate "2019.08.02"]
[EventType "swiss"]
[EventCountry "SVK"]
[SourceTitle "playchess.com"]
[Source "ChessBase"]
[SourceQuality "1"]
[TimeControl "40/5400+30:1800+30"]

1. e4 {[%emt 0:00:00]} d5 {[%emt 0:00:00]} 2. exd5 {[%emt 0:00:00]} Qxd5 {[%emt 0:00:00]} 3. Nc3 {[%emt 0:00:00]} Qd6 {[%emt 0:00:00]} 4. d4 {[%emt 0:00:13]} Nf6 {[%emt 0:00:00]} 5. Nf3 {[%emt 0:00:12]} c6 {[%emt 0:00:03]} 6. Ne5 {[%emt 0:00:32]} Nbd7 {[%emt 0:00:06]} 7. Bf4 {[%emt 0:00:28]} Nd5 {[%emt 0:00:12]} 8. Bg3 {[%emt 0:01:59]} Qe6 {[%emt 0:02:27]} 9. Be2 {[%emt 0:04:37]} Nxe5 {[%emt 0:01:59]} 10. Bxe5 {[%emt 0:03:05]} Nxc3 {[%emt 0:05:20]} 11. bxc3 {[%emt 0:02:37]} Qg6 {[%emt 0:05:52]} 12. O-O {[%emt 0:05:27]} Bf5 {[%emt 0:02:33]} 13. Bh5 {[%emt 0:07:30]} Bxc2 {[%emt 0:10:36]} 14. Bxg6 {[%emt 0:00:51]} Bxd1 {[%emt 0:02:55]} 15. Bxf7+ {[%emt 0:00:14]} Kxf7 {[%emt 0:00:08]} 16. Rfxd1 {[%emt 0:00:09]} e6 {[%emt 0:04:30]} 17. Rab1 {[%emt 0:04:24]} b5 {[%emt 0:04:26]} 18. c4 {[%emt 0:05:38]} a6 {[%emt 0:00:38]} 19. Rdc1 {[%emt 0:03:22]} Be7 {[%emt 0:18:23]} 20. cxb5 {[%emt 0:09:25]} cxb5 {[%emt 0:03:16]} 21. Rc7 {[%emt 0:03:26]} Rhc8 {[%emt 0:04:05]} 22. Rbc1 {[%emt 0:06:52]} Rxc7 {[%emt 0:02:50]} 23. Rxc7 {[%emt 0:00:19]} g6 {[%emt 0:00:13]} 24. Kf1 {[%emt 0:06:29]} a5 {[%emt 0:02:58]} 25. Bd6 {[%emt 0:03:34]} Re8 {[%emt 0:00:08]} 26. Ra7 {[%emt 0:01:36]} Kf8 {[%emt 0:08:21]} 27. Bxe7+ {[%emt 0:00:42]} Rxe7 {[%emt 0:00:08]} 28. Rxa5 {[%emt 0:00:10]} Rb7 {[%emt 0:00:28]} 29. Ke2 {[%emt 0:01:56]} b4 {[%emt 0:00:31]} 30. Rc5 {[%emt 0:02:25]} b3 {[%emt 0:02:07]} 31. axb3 {[%emt 0:00:16]} Rxb3 {[%emt 0:00:10]} 32. Rc8+ {[%emt 0:00:24]} Kf7 {[%emt 0:01:25]} 33. Rc7+ {[%emt 0:00:35]} Kg8 {[%emt 0:00:20]} 34. Re7 {[%emt 0:03:01]} Rb6 {[%emt 0:00:18]} 35. Kf3 {[%emt 0:01:29]} h5 {[%emt 0:01:06]} 36. Kf4 {[%emt 0:03:31]} Kf8 {[%emt 0:00:19]} 37. Rd7 {[%emt 0:00:23]} Rb5 {[%emt 0:01:00]} 38. Rc7 {[%emt 0:02:08]} Rf5+ {[%emt 0:02:21]} 39. Ke3 {[%emt 0:00:26]} Rb5 {[%emt 0:00:22]} 40. Rc5 {[%emt 0:00:00]} Rb2 {[%emt 0:00:00]} 41. d5 {[%emt 0:04:42]} exd5 {[%emt 0:01:18]} 42. Rxd5 {[%emt 0:00:12]} Ke7 {[%emt 0:00:39]} 43. Rd2 {[%emt 0:00:14]} Rb4 {[%emt 0:00:32]} 44. f3 {[%emt 0:04:25]} Ke6 {[%emt 0:01:25]} 45. Rd4 {[%emt 0:00:14]} 1/2-1/2

[Event "EYCC Open-U10 2019"]
[Site "Bratislava"]
[Date "2019.08.08"]
[Round "7.25"]
[White "Deladerriere, Apollo"]
[Black "Sowinski, Pawel"]
[Result "1/2-1/2"]
[ECO "B23"]
[WhiteElo "1696"]
[BlackElo "1644"]
[Annotator "NA"]
[PlyCount "163"]
[EventDate "2019.08.02"]
[EventType "swiss"]
[EventCountry "SVK"]
[SourceTitle "playchess.com"]
[Source "ChessBase"]
[SourceQuality "1"]
[TimeControl "40/5400+30:1800+30"]

1. e4 {[%emt 0:00:00]} c5 {[%emt 0:00:00]} 2. Nc3 {[%emt 0:00:00]} d6 {[%emt 0:00:00]} 3. f4 {[%emt 0:00:21]} g6 {[%emt 0:00:11]} 4. Nf3 {[%emt 0:00:11]} Bg7 {[%emt 0:00:11]} 5. Bc4 {[%emt 0:02:38]} Nc6 {[%emt 0:01:16]} 6. d3 {[%emt 0:00:39]} e6 {[%emt 0:00:40]} 7. O-O {[%emt 0:00:32]} Nge7 {[%emt 0:00:22]} 8. Qe1 {[%emt 0:03:10]} Nd4 {[%emt 0:02:20]} 9. Nxd4 {[%emt 0:01:56]} cxd4 {[%emt 0:01:58]} 10. Ne2 {[%emt 0:00:31]} O-O {[%emt 0:01:41]} 11. g4 {[%emt 0:18:41]} f5 {[%emt 0:00:47]} 12. g5 {[%emt 0:00:14]} Kh8 {[%emt 0:01:31]} 13. exf5 {[%emt 0:02:45]} Nxf5 {[%emt 0:01:30]} 14. Ng3 {[%emt 0:01:24]} e5 {[%emt 0:01:20]} 15. Bd5 {[%emt 0:07:47]} Qe7 {[%emt 0:05:59]} 16. Bd2 {[%emt 0:07:24]} exf4 {[%emt 0:01:23]} 17. Bxf4 {[%emt 0:06:16]} Ne3 {[%emt 0:01:11]} 18. Bxe3 {[%emt 0:00:39]} Rxf1+ {[%emt 0:01:27]} 19. Nxf1 {[%emt 0:02:11]} dxe3 {[%emt 0:00:30]} 20. Qxe3 {[%emt 0:01:04]} Qxe3+ {[%emt 0:00:41]} 21. Nxe3 {[%emt 0:00:06]} Bd7 {[%emt 0:04:49]} 22. c3 {[%emt 0:09:48]} Re8 {[%emt 0:02:44]} 23. Nc4 {[%emt 0:01:39]} Be5 {[%emt 0:02:23]} 24. Rf1 {[%emt 0:12:50]} b5 {[%emt 0:14:03]} 25. Nxe5 {[%emt 0:04:33]} dxe5 {[%emt 0:00:19]} 26. Rf7 {[%emt 0:02:09]} Bf5 {[%emt 0:00:10]} 27. Bc6 {[%emt 0:02:30]} Rb8 {[%emt 0:01:50]} 28. Rxa7 {[%emt 0:01:29]} b4 {[%emt 0:03:12]} 29. Rb7 {[%emt 0:10:29]} Rc8 {[%emt 0:01:09]} 30. Bd5 {[%emt 0:00:21]} bxc3 {[%emt 0:00:38]} 31. bxc3 {[%emt 0:00:06]} Bxd3 {[%emt 0:00:37]} 32. Re7 {[%emt 0:00:44]} e4 {[%emt 0:01:07]} 33. Be6 {[%emt 0:00:51]} Rf8 {[%emt 0:01:55]} 34. Bd5 {[%emt 0:00:25]} Rc8 {[%emt 0:00:13]} 35. Bxe4 {[%emt 0:00:30]} Bxe4 {[%emt 0:00:17]} 36. Rxe4 {[%emt 0:00:06]} Rxc3 {[%emt 0:00:05]} 37. a4 {[%emt 0:00:47]} Ra3 {[%emt 0:01:22]} 38. Re8+ {[%emt 0:00:28]} Kg7 {[%emt 0:00:08]} 39. Re7+ {[%emt 0:00:04]} Kg8 {[%emt 0:00:11]} 40. Ra7 {[%emt 0:00:00]} Rh3 {[%emt 0:00:00]} 41. Kg2 {[%emt 0:00:55]} Rh5 {[%emt 0:02:02]} 42. Ra5 {[%emt 0:00:32]} h6 {[%emt 0:01:27]} 43. Kg3 {[%emt 0:11:46]} hxg5 {[%emt 0:01:48]} 44. Ra8+ {[%emt 0:00:29]} Kf7 {[%emt 0:00:08]} 45. a5 {[%emt 0:01:12]} Rh4 {[%emt 0:00:56]} 46. a6 {[%emt 0:00:05]} Ra4 {[%emt 0:00:43]} 47. Kf3 {[%emt 0:00:06]} g4+ {[%emt 0:02:25]} 48. Ke3 {[%emt 0:00:29]} Kf6 {[%emt 0:00:08]} 49. Kf2 {[%emt 0:02:11]} Kg5 {[%emt 0:00:51]} 50. a7 {[%emt 0:01:43]} Ra2+ {[%emt 0:00:09]} 51. Ke3 {[%emt 0:00:46]} Ra3+ {[%emt 0:00:25]} 52. Kd4 {[%emt 0:00:46]} Ra4+ {[%emt 0:00:48]} 53. Kc5 {[%emt 0:00:49]} Ra2 {[%emt 0:00:11]} 54. Kc4 {[%emt 0:02:53]} Ra4+ {[%emt 0:00:41]} 55. Kb3 {[%emt 0:01:28]} Ra6 {[%emt 0:00:16]} 56. Kc4 {[%emt 0:00:29]} Ra5 {[%emt 0:00:19]} 57. Kc3 {[%emt 0:00:15]} Ra6 {[%emt 0:00:16]} 58. Kd4 {[%emt 0:00:31]} Ra5 {[%emt 0:01:01]} 59. Kc4 {[%emt 0:00:22]} Ra4+ {[%emt 0:00:34]} 60. Kc5 {[%emt 0:00:08]} Ra2 {[%emt 0:00:36]} 61. Kd4 {[%emt 0:02:02]} Ra4+ {[%emt 0:00:13]} 62. Kc3 {[%emt 0:02:20]} Ra3+ {[%emt 0:00:39]} 63. Kb2 {[%emt 0:00:00]} Ra6 {[%emt 0:00:00]} 64. Kb3 {[%emt 0:00:00]} Ra5 {[%emt 0:00:02]} 65. Kb4 {[%emt 0:00:20]} Ra6 {[%emt 0:00:06]} 66. Kc5 {[%emt 0:00:19]} Ra2 {[%emt 0:00:08]} 67. Kb6 {[%emt 0:00:08]} Rxh2 {[%emt 0:02:03]} 68. Re8 {[%emt 0:02:52]} Rb2+ {[%emt 0:00:08]} 69. Kc5 {[%emt 0:01:04]} Ra2 {[%emt 0:00:33]} 70. a8=Q {[%emt 0:00:16]} Rxa8 {[%emt 0:00:09]} 71. Rxa8 {[%emt 0:00:05]} g3 {[%emt 0:00:34]} 72. Kd4 {[%emt 0:05:14]} g2 {[%emt 0:01:42]} 73. Ra1 {[%emt 0:00:06]} Kg4 {[%emt 0:00:04]} 74. Ke3 {[%emt 0:01:05]} Kg3 {[%emt 0:00:15]} 75. Ke2 {[%emt 0:04:16]} g5 {[%emt 0:00:34]} 76. Ra3+ {[%emt 0:01:08]} Kh2 {[%emt 0:00:28]} 77. Ra1 {[%emt 0:00:21]} g1=Q {[%emt 0:00:42]} 78. Rxg1 {[%emt 0:00:14]} Kxg1 {[%emt 0:00:08]} 79. Kf3 {[%emt 0:00:03]} Kh2 {[%emt 0:00:12]} 80. Kg4 {[%emt 0:00:07]} Kg2 {[%emt 0:00:04]} 81. Kf5 {[%emt 0:00:46]} Kh3 {[%emt 0:00:07]} 82. Kxg5 {[%emt 0:00:06]} 1/2-1/2

[Event "EYCC Open-U10 2019"]
[Site "Bratislava"]
[Date "2019.08.08"]
[Round "7.26"]
[White "Gut, Lionel"]
[Black "Batozhargalov, Erdem"]
[Result "1/2-1/2"]
[ECO "D08"]
[WhiteElo "1583"]
[BlackElo "1080"]
[Annotator "NA"]
[PlyCount "78"]
[EventDate "2019.08.02"]
[EventType "swiss"]
[EventCountry "SVK"]
[SourceTitle "playchess.com"]
[Source "ChessBase"]
[SourceQuality "1"]
[TimeControl "40/5400+30:1800+30"]

1. d4 {[%emt 0:00:00]} d5 {[%emt 0:00:00]} 2. c4 {[%emt 0:00:31]} e5 {[%emt 0:00:00]} 3. dxe5 {[%emt 0:00:41]} d4 {[%emt 0:00:50]} 4. Nf3 {[%emt 0:00:59]} Nc6 {[%emt 0:01:02]} 5. Nbd2 {[%emt 0:05:30]} Nge7 {[%emt 0:03:51]} 6. a3 {[%emt 0:02:22]} Ng6 {[%emt 0:01:20]} 7. Nb3 {[%emt 0:00:37]} Ngxe5 {[%emt 0:00:57]} 8. Nxe5 {[%emt 0:00:18]} Nxe5 {[%emt 0:00:17]} 9. Qxd4 {[%emt 0:01:13]} Qxd4 {[%emt 0:02:22]} 10. Nxd4 {[%emt 0:00:32]} c6 {[%emt 0:03:48]} 11. e3 {[%emt 0:04:37]} Be7 {[%emt 0:05:14]} 12. Be2 {[%emt 0:03:03]} O-O {[%emt 0:01:21]} 13. O-O {[%emt 0:00:35]} c5 {[%emt 0:02:11]} 14. Nb5 {[%emt 0:00:55]} Bd7 {[%emt 0:05:40]} 15. Nc7 {[%emt 0:01:30]} Rac8 {[%emt 0:01:23]} 16. Nd5 {[%emt 0:00:35]} Bd8 {[%emt 0:03:02]} 17. Bd2 {[%emt 0:08:07]} Nc6 {[%emt 0:07:20]} 18. Rfd1 {[%emt 0:05:07]} Kh8 {[%emt 0:02:38]} 19. Bc3 {[%emt 0:00:31]} Bf5 {[%emt 0:01:30]} 20. Nf4 {[%emt 0:02:56]} Ba5 {[%emt 0:00:20]} 21. Bxa5 {[%emt 0:03:54]} Nxa5 {[%emt 0:00:48]} 22. Rac1 {[%emt 0:18:13]} h6 {[%emt 0:04:50]} 23. Bf3 {[%emt 0:03:13]} b6 {[%emt 0:13:50]} 24. Bd5 {[%emt 0:03:22]} Nc6 {[%emt 0:04:37]} 25. h3 {[%emt 0:10:41]} Ne7 {[%emt 0:02:49]} 26. f3 {[%emt 0:07:16]} Nxd5 {[%emt 0:10:09]} 27. cxd5 {[%emt 0:00:01]} g5 {[%emt 0:00:34]} 28. Nh5 {[%emt 0:02:04]} f6 {[%emt 0:01:12]} 29. e4 {[%emt 0:01:06]} Bg6 {[%emt 0:00:10]} 30. Ng3 {[%emt 0:00:03]} h5 {[%emt 0:00:21]} 31. Re1 {[%emt 0:00:19]} Rfe8 {[%emt 0:00:31]} 32. Rcd1 {[%emt 0:00:24]} Rcd8 {[%emt 0:01:17]} 33. Rd2 {[%emt 0:00:44]} h4 {[%emt 0:00:25]} 34. Nf1 {[%emt 0:00:32]} Kg7 {[%emt 0:00:54]} 35. Kf2 {[%emt 0:00:29]} Kf7 {[%emt 0:01:21]} 36. Nh2 {[%emt 0:00:57]} Bh5 {[%emt 0:00:25]} 37. Ng4 {[%emt 0:01:42]} Bxg4 {[%emt 0:00:21]} 38. hxg4 {[%emt 0:00:03]} Kg6 {[%emt 0:00:58]} 39. d6 {[%emt 0:03:33]} Kf7 1/2-1/2

[Event "EYCC Open-U10 2019"]
[Site "Bratislava"]
[Date "2019.08.08"]
[Round "7.27"]
[White "La Barbera, Manfredi"]
[Black "Englisch, Tobias"]
[Result "0-1"]
[ECO "B21"]
[WhiteElo "1479"]
[BlackElo "1643"]
[Annotator "NA"]
[PlyCount "72"]
[EventDate "2019.08.02"]
[EventType "swiss"]
[EventCountry "SVK"]
[SourceTitle "playchess.com"]
[Source "ChessBase"]
[SourceQuality "1"]
[TimeControl "40/5400+30:1800+30"]

1. e4 {[%emt 0:00:00]} c5 {[%emt 0:00:00]} 2. d4 {[%emt 0:00:00]} cxd4 {[%emt 0:00:00]} 3. c3 {[%emt 0:00:00]} Nf6 {[%emt 0:00:00]} 4. e5 {[%emt 0:00:01]} Nd5 {[%emt 0:00:00]} 5. cxd4 {[%emt 0:01:08]} Nc6 {[%emt 0:00:01]} 6. Nf3 {[%emt 0:01:07]} d6 {[%emt 0:00:19]} 7. Bb5 {[%emt 0:12:32]} Bd7 {[%emt 0:08:17]} 8. Qb3 {[%emt 0:02:20]} e6 {[%emt 0:06:07]} 9. O-O {[%emt 0:04:25]} a6 {[%emt 0:00:50]} 10. Bc4 {[%emt 0:01:54]} Na5 {[%emt 0:02:29]} 11. Qc2 {[%emt 0:02:55]} Rc8 {[%emt 0:03:41]} 12. b3 {[%emt 0:05:00]} b5 {[%emt 0:00:08]} 13. Bd2 {[%emt 0:01:14]} bxc4 {[%emt 0:00:47]} 14. Bxa5 {[%emt 0:00:07]} Qxa5 {[%emt 0:00:51]} 15. bxc4 {[%emt 0:00:28]} Nb6 {[%emt 0:03:26]} 16. Nbd2 {[%emt 0:01:03]} Bb5 {[%emt 0:08:05]} 17. Rfc1 {[%emt 0:03:34]} Nxc4 {[%emt 0:01:37]} 18. a4 {[%emt 0:00:51]} Nb6 {[%emt 0:00:22]} 19. Qe4 {[%emt 0:09:11]} Rxc1+ {[%emt 0:03:56]} 20. Rxc1 {[%emt 0:00:40]} d5 {[%emt 0:00:22]} 21. Qc2 {[%emt 0:02:01]} Bc4 {[%emt 0:01:56]} 22. Rb1 {[%emt 0:04:51]} Bb4 {[%emt 0:01:13]} 23. Qb2 {[%emt 0:00:53]} Bxd2 {[%emt 0:00:17]} 24. Nxd2 {[%emt 0:00:14]} O-O {[%emt 0:00:19]} 25. Qb4 {[%emt 0:14:24]} Qxb4 {[%emt 0:02:45]} 26. Rxb4 {[%emt 0:00:05]} Rb8 {[%emt 0:05:13]} 27. Nxc4 {[%emt 0:00:14]} dxc4 {[%emt 0:00:06]} 28. Kf1 {[%emt 0:00:17]} a5 {[%emt 0:03:46]} 29. Rb5 {[%emt 0:01:14]} c3 {[%emt 0:00:51]} 30. Ke2 {[%emt 0:00:15]} c2 {[%emt 0:00:21]} 31. Kd2 {[%emt 0:00:05]} Rc8 {[%emt 0:00:51]} 32. Rc5 {[%emt 0:00:05]} Rxc5 {[%emt 0:00:05]} 33. dxc5 {[%emt 0:00:04]} Nxa4 {[%emt 0:00:08]} 34. c6 {[%emt 0:00:05]} Nb6 {[%emt 0:00:11]} 35. Kxc2 {[%emt 0:00:09]} Kf8 {[%emt 0:00:56]} 36. Kb3 {[%emt 0:00:06]} Ke7 {[%emt 0:00:15]} 0-1

[Event "EYCC Open-U10 2019"]
[Site "Bratislava"]
[Date "2019.08.08"]
[Round "7.28"]
[White "Villa Tornero, Alex"]
[Black "Bukvaj, Martin"]
[Result "1-0"]
[ECO "C22"]
[WhiteElo "1641"]
[BlackElo "1220"]
[Annotator "NA"]
[PlyCount "55"]
[EventDate "2019.08.02"]
[EventType "swiss"]
[EventCountry "SVK"]
[SourceTitle "playchess.com"]
[Source "ChessBase"]
[SourceQuality "1"]
[TimeControl "40/5400+30:1800+30"]

1. e4 {[%emt 0:00:05]} e5 2. d4 {[%emt 0:00:53]} exd4 {[%emt 0:00:07]} 3. Qxd4 {[%emt 0:00:29]} Nc6 {[%emt 0:02:08]} 4. Qe3 {[%emt 0:02:11]} d6 {[%emt 0:01:55]} 5. Nc3 {[%emt 0:00:19]} Be7 {[%emt 0:00:14]} 6. Bd2 {[%emt 0:00:27]} Nf6 {[%emt 0:00:29]} 7. O-O-O {[%emt 0:00:19]} Be6 {[%emt 0:03:38]} 8. Qg3 {[%emt 0:01:28]} g6 {[%emt 0:00:37]} 9. f4 {[%emt 0:02:24]} Qd7 {[%emt 0:02:21]} 10. h3 {[%emt 0:01:23]} O-O-O {[%emt 0:01:07]} 11. Nf3 {[%emt 0:01:29]} h5 {[%emt 0:03:28]} 12. Bb5 {[%emt 0:02:55]} a6 {[%emt 0:02:52]} 13. Ba4 {[%emt 0:01:22]} Qe8 {[%emt 0:01:18]} 14. Rhe1 {[%emt 0:02:16]} Bd7 {[%emt 0:03:39]} 15. Be3 {[%emt 0:01:01]} Na5 {[%emt 0:01:35]} 16. Bxd7+ {[%emt 0:00:27]} Qxd7 {[%emt 0:00:09]} 17. Bg1 {[%emt 0:00:21]} b5 {[%emt 0:06:14]} 18. Ng5 {[%emt 0:03:53]} Rdf8 {[%emt 0:02:19]} 19. e5 {[%emt 0:00:25]} h4 {[%emt 0:00:48]} 20. Qf2 {[%emt 0:00:41]} Ne8 {[%emt 0:05:23]} 21. e6 {[%emt 0:02:14]} fxe6 {[%emt 0:00:20]} 22. Nxe6 {[%emt 0:00:12]} Rf6 {[%emt 0:01:20]} 23. Qa7 {[%emt 0:00:14]} Qc6 {[%emt 0:01:08]} 24. Nd5 {[%emt 0:00:21]} Rf7 {[%emt 0:01:15]} 25. Bb6 {[%emt 0:01:14]} Nb7 {[%emt 0:03:09]} 26. Qa8+ {[%emt 0:01:57]} Kd7 {[%emt 0:01:39]} 27. Nxe7 {[%emt 0:09:09]} Rxe7 {[%emt 0:01:29]} 28. Nc5+ {[%emt 0:00:31]} 1-0

[Event "EYCC Open-U10 2019"]
[Site "Bratislava"]
[Date "2019.08.08"]
[Round "7.29"]
[White "Misiuk, Martynas"]
[Black "Grabs, Peter"]
[Result "1-0"]
[ECO "C00"]
[WhiteElo "1304"]
[BlackElo "1638"]
[Annotator "NA"]
[PlyCount "61"]
[EventDate "2019.08.02"]
[EventType "swiss"]
[EventCountry "SVK"]
[SourceTitle "playchess.com"]
[Source "ChessBase"]
[SourceQuality "1"]
[TimeControl "40/5400+30:1800+30"]

1. e4 {[%emt 0:00:00]} e6 {[%emt 0:00:00]} 2. d4 {[%emt 0:00:00]} d5 {[%emt 0:00:00]} 3. Bd3 {[%emt 0:00:00]} dxe4 {[%emt 0:00:24]} 4. Bxe4 {[%emt 0:00:04]} Nf6 {[%emt 0:00:05]} 5. Bf3 {[%emt 0:01:36]} c5 {[%emt 0:02:46]} 6. Ne2 {[%emt 0:01:49]} cxd4 {[%emt 0:08:55]} 7. Qxd4 {[%emt 0:00:57]} Qxd4 {[%emt 0:10:28]} 8. Nxd4 {[%emt 0:00:27]} e5 {[%emt 0:31:26]} 9. Nb5 {[%emt 0:07:14]} Kd8 {[%emt 0:06:09]} 10. N1c3 {[%emt 0:05:03]} a6 {[%emt 0:02:05]} 11. Na3 {[%emt 0:00:23]} Bxa3 {[%emt 0:00:59]} 12. bxa3 {[%emt 0:00:08]} e4 {[%emt 0:01:09]} 13. Be2 {[%emt 0:01:41]} Nc6 {[%emt 0:04:41]} 14. Bg5 {[%emt 0:00:59]} Re8 {[%emt 0:06:13]} 15. O-O {[%emt 0:01:50]} Bf5 {[%emt 0:00:53]} 16. Nd5 {[%emt 0:01:25]} Re6 {[%emt 0:02:41]} 17. Rad1 {[%emt 0:00:28]} Kc8 {[%emt 0:03:41]} 18. Nb6+ {[%emt 0:02:04]} Kb8 {[%emt 0:00:06]} 19. Bf4+ {[%emt 0:00:50]} Ka7 {[%emt 0:00:06]} 20. Nxa8 {[%emt 0:00:21]} Kxa8 {[%emt 0:00:14]} 21. Rd6 {[%emt 0:00:14]} Re8 {[%emt 0:01:45]} 22. Bxa6 {[%emt 0:02:44]} Ne7 {[%emt 0:03:32]} 23. Bb5 {[%emt 0:01:25]} Rc8 {[%emt 0:01:02]} 24. c4 {[%emt 0:00:52]} Ng6 {[%emt 0:03:02]} 25. Be3 {[%emt 0:01:18]} Ne5 {[%emt 0:01:23]} 26. Rfd1 {[%emt 0:02:27]} Nxc4 {[%emt 0:02:27]} 27. Bxc4 {[%emt 0:00:12]} Rxc4 {[%emt 0:01:35]} 28. Rd8+ {[%emt 0:00:13]} Rc8 {[%emt 0:00:09]} 29. Rxc8+ {[%emt 0:00:07]} Bxc8 {[%emt 0:00:06]} 30. Rd8 {[%emt 0:00:07]} Kb8 {[%emt 0:00:09]} 31. Bf4+ {[%emt 0:00:07]} 1-0

[Event "EYCC Open-U10 2019"]
[Site "Bratislava"]
[Date "2019.08.08"]
[Round "7.30"]
[White "Bartodziej, Bartosz"]
[Black "Pereverzev, Timofei"]
[Result "1-0"]
[ECO "B41"]
[WhiteElo "1526"]
[BlackElo "1332"]
[Annotator "NA"]
[PlyCount "59"]
[EventDate "2019.08.02"]
[EventType "swiss"]
[EventCountry "SVK"]
[SourceTitle "playchess.com"]
[Source "ChessBase"]
[SourceQuality "1"]
[TimeControl "40/5400+30:1800+30"]

1. e4 c5 2. Nf3 e6 3. d4 cxd4 4. Nxd4 a6 5. c4 Nf6 6. Nc3 Qc7 7. Be2 Bb4 8. O-O O-O 9. Qd3 Nc6 10. Nxc6 dxc6 11. Be3 Rd8 12. Qc2 Bxc3 13. bxc3 Qe5 14. Rad1 Re8 15. f3 b5 16. c5 Ra7 17. Rd6 Bb7 18. Rfd1 Raa8 19. Qc1 h6 20. R1d3 Rab8 21. Qd2 Kf8 22. Rd8 Rbxd8 23. Rxd8 Qc7 24. Rd6 Bc8 25. Bf4 e5 26. Bxh6 Nxe4 27. fxe4 gxh6 28. Qxh6+ Kg8 29. Qg5+ Kf8 30. Rh6 1-0

[Event "EYCC Open-U10 2019"]
[Site "Bratislava"]
[Date "2019.08.08"]
[Round "7.31"]
[White "Blumenthal, Michael"]
[Black "Khoo-Thwe, Louis"]
[Result "1-0"]
[ECO "C24"]
[WhiteElo "1311"]
[BlackElo "1746"]
[Annotator "NA"]
[PlyCount "31"]
[EventDate "2019.08.02"]
[EventType "swiss"]
[EventCountry "SVK"]
[SourceTitle "playchess.com"]
[Source "ChessBase"]
[SourceQuality "1"]
[TimeControl "40/5400+30:1800+30"]

1. e4 e5 2. Bc4 Nf6 3. d3 Bc5 4. Nc3 O-O 5. f4 d6 6. Nf3 Ng4 7. Ng5 h6 8. f5 Nf2 9. Qh5 Nxh1 10. Nxf7 Rxf7 11. Qxf7+ Kh8 12. f6 Bf2+ 13. Kf1 Ng3+ 14. hxg3 gxf6 15. Bxh6 Qe7 16. Qg8# 1-0